Cogmind - Beta 9.6 @@@ ROGUE MODE // 2020.07.10 @ 17:10:57 Player: aoemica Result: Self-destructed Performance ------------- Evolutions (2) 1000 Regions Visited (5) 1000 Robots Destroyed (97) 485 Value Destroyed (2171) 2171 Prototype IDs (10) 200 Alien Tech Used (0) 0 Bonus (99) 99 TOTAL SCORE: 4955 Bonus ------- High Alert Combat Kills 32 Follower Combat Kills 67 Cogmind --------- Core Integrity 428/550 Matter 220/300 Energy 150/150 System Corruption 0% Temperature Cool (0) Movement Rolling (160) Ox8 Location -8/Materials Parts ------- > --- POWER (1) -------- Light Angular Momentum Engine > --- PROPULSION (2) --- Light Treads Wheel > --- UTILITY (6) ------ Improved Heat Sink Large Storage Unit Large Storage Unit High-capacity Storage Unit Light Armor Plating > --- WEAPON (2) ------- Advanced Beam Cannon Assault Cannon > --- INVENTORY (24) --- Armored Treads Aerolev Unit Aerolev Unit Improved Flight Unit Improved Flight Unit Improved Flight Unit Improved Flight Unit Medium Storage Unit Improved Signal Interpreter Hacking Suite Hacking Suite Particle Gun Bore Cannon Rocket Launcher Mini Grenade Launcher Plasma Cutter Heavy Mace Blade Trap Blade Trap Blade Trap Peak State ------------ > --- POWER ------------ Light Angular Momentum Engine > --- PROPULSION ------- Light Treads Wheel > --- UTILITY ---------- Improved Heat Sink Improved Heat Sink Large Storage Unit Large Storage Unit High-capacity Storage Unit Light Armor Plating > --- WEAPON ----------- Advanced Beam Cannon Rocket Launcher > --- INVENTORY -------- Armored Treads Aerolev Unit Aerolev Unit Improved Flight Unit Improved Flight Unit Improved Flight Unit Improved Flight Unit Medium Storage Unit Improved Signal Interpreter Hacking Suite Hacking Suite Particle Gun Assault Cannon Bore Cannon Mini Grenade Launcher Plasma Cutter Heavy Mace Blade Trap Blade Trap Blade Trap [Rating: 27] Favorites ----------- Power Ion Engine Engine Ion Engine Power Core Light Nuclear Core Propulsion Light Treads Treads Light Treads Wheel Compact Wheel Utility Large Storage Unit Device Improved Heat Sink Storage Large Storage Unit Protection Light Armor Plating Weapon Medium Laser Energy Gun Medium Laser Energy Cannon Particle Cannon Ballistic Gun Assault Rifle Ballistic Cannon Assault Cannon Launcher Rocket Launcher Impact Weapon Heavy Mace Slashing Weapon Mining Claw Build | -11 -10 -10 -9 -9 -8 ------- Run | Scr Mat Min Mat Min Mat Slots Evolved 4 | . . . 2 . 2 Power . | . . . . . . Propulsion . | . . . . . . Utility 4 | . . . 2 . 2 Weapon . | . . . . . . Parts Attached 98 | 6 26 2 41 11 12 Power 9 | 1 3 . 3 1 1 Engine 8 | 1 3 . 3 . 1 Core 1 | . . . . 1 . Reactor . | . . . . . . Propulsion 15 | 2 2 1 8 2 . Treads 11 | 1 1 1 7 1 . Leg . | . . . . . . Wheel 4 | 1 1 . 1 1 . Hover . | . . . . . . Flight . | . . . . . . Utility 16 | 1 5 . 7 . 3 Device 6 | . 2 . 3 . 1 Storage 5 | 1 3 . 1 . . Processor . | . . . . . . Hackware . | . . . . . . Protection 5 | . . . 3 . 2 Artifact . | . . . . . . Weapon 58 | 2 16 1 23 8 8 Energy Gun 19 | . 6 . 10 2 1 Energy Cannon 10 | . . . 6 2 2 Ballistic Gun 8 | 2 4 1 1 . . Ballistic Cannon 4 | . . . . 1 3 Launcher 4 | . . . 1 1 2 Special Weapon . | . . . . . . Impact Weapon 12 | . 5 . 5 2 . Slashing Weapon 1 | . 1 . . . . Piercing Weapon . | . . . . . . Special Melee Weapon . | . . . . . . Unidentified Prototypes . | . . . . . . Parts Lost 10 | . 1 . 2 1 6 Power 1 | . . . . . 1 Propulsion . | . . . . . . Utility 2 | . . . . . 2 Weapon 7 | . 1 . 2 1 3 Highest Loss Streak 5 | . 1 . 1 1 5 Average Slot Usage (%) 98 | . 98 100 98 99 85 Engine 10 | . 14 14 10 2 4 Core 1 | . . . . 8 4 Treads 12 | . 14 14 11 10 9 Wheel 12 | . 14 14 11 11 9 Device 6 | . 1 . 10 11 9 Storage 28 | . 25 28 27 33 27 Protection 1 | . . . 5 . 6 Energy Gun 10 | . 12 14 11 6 3 Energy Cannon 2 | . . . 6 . 5 Ballistic Gun 6 | . 13 13 1 . . Ballistic Cannon 2 | . . . . 10 4 Impact Weapon 1 | . 2 . 2 . . Naked Turns . | . . . . . . Heaviest Build 86 | 11 58 58 80 81 86 Greatest Support 20 | 20 20 20 20 20 10 Greatest Overweight (x) 8 | 1 4 3 4 8 8 Average Overweight (x) 3 | . 3 2 3 4 7 Largest Inventory Capacity 24 | 6 18 18 24 24 24 Average Capacity 19 | 5 14 18 20 24 24 Most Carried 24 | 6 17 18 24 24 24 Average Carried 19 | 4 14 17 20 23 21 Final Capacity 24 | 6 18 18 24 24 24 Final Carried 24 | 6 17 18 24 24 20 Class Distribution -------------------- 43% | Mutant 38% | Hauler-Mutant 17% | Scavenger-Mutant Dominant Class ---------------- Mutant | -10/Materials Mutant | -10/Mines Scavenger-Mutant | -9/Materials Hauler-Mutant | -9/Mines Hauler-Mutant | -8/Materials Resources | -11 -10 -10 -9 -9 -8 ----------- Run | Scr Mat Min Mat Min Mat Matter Collected 1684 | 188 502 32 462 323 177 Remotely . | . . . . . . Salvage Created 3063 | . 780 39 1608 223 413 Parts 188 | . 43 4 109 5 27 Haulers Intercepted 10 | . 2 . 5 . 3 Recyclers Shooed 2 | . 1 . 1 . . Parts Field Recycled . | . . . . . . Retrieved Matter . | . . . . . . Parts Self-Destructed . | . . . . . . Prevented . | . . . . . . Kills | -11 -10 -10 -9 -9 -8 ------- Run | Scr Mat Min Mat Min Mat Combat Hostiles Destroyed 69 | . 12 . 27 17 13 Guns 24 | . 12 . 11 1 . Cannons 24 | . . . 12 7 5 AOE 21 | . . . 4 9 8 Classes Destroyed 12 | . 5 1 3 2 1 Worker 3 | . . 2 1 . . Builder 2 | . . . 1 . 1 Hauler 10 | . 2 . 5 . 3 Recycler 6 | . 3 . 3 . . Operator 1 | . . . 1 . . Watcher 6 | . 3 . 3 . . Swarmer 17 | . 3 . 7 1 6 Grunt 30 | . 9 . 13 4 4 Duelist 1 | . . . . 1 . Sentry 9 | . . . 7 . 2 Hunter 1 | . . . . . 1 Assembled 11 | . . . . 11 . Best Kill Streak 7 | . 4 1 4 7 6 Combat Bots Only 7 | . 3 . 4 7 5 Max Kills in Single Turn 4 | . 2 1 2 2 4 Gunslinging 1 | . 1 . . . . Exploded 3 | . . . 2 2 3 Melee . | . . . . . . Uniques/NPCs Destroyed . | . . . . . . Combat | -11 -10 -10 -9 -9 -8 -------- Run | Scr Mat Min Mat Min Mat Damage Taken 2604 | . 418 . 947 437 802 Core 450 | . 107 . 105 116 122 Absorbed by Shields . | . . . . . . Core Remaining (%) 67 | 100 . 57 . 44 . Volleys Fired 244 | . 73 4 99 34 34 Largest 2 | . 2 2 2 2 2 Hottest 136 | . 70 70 136 136 112 Shots Fired 421 | . 140 8 175 45 53 Gun 279 | . 140 8 115 4 12 Cannon 120 | . . . 58 28 34 Launcher 22 | . . . 2 13 7 Special . | . . . . . . Kinetic 141 | . 91 4 15 13 18 Thermal 187 | . 49 4 103 15 16 Explosive 22 | . . . 2 13 7 Electromagnetic 71 | . . . 55 4 12 Robot Hit Streak 12 | . 12 2 11 5 5 Robot Miss Streak 5 | . 5 2 4 4 5 Penetration Max . | . . . . . . Secondary Targets 4 | . 4 . . . . Max Gunslinging Chain 1 | . 1 . . . . Shots Hit Robots 277 | . 101 4 119 24 29 Core Hits 155 | . 39 2 67 22 25 Critical Hits 7 | . . . 5 . 2 Critical Kills 4 | . . . 4 . . Critical Parts Destroyed 3 | . . . 1 . 2 Melee Attacks 34 | . 12 . 18 4 . Impact 31 | . 9 . 18 4 . Slashing 3 | . 3 . . . . Piercing . | . . . . . . Sneak Attacks 1 | . 1 . . . . Combat Hostiles . | . . . . . . Follow-up Attacks . | . . . . . . Damage Inflicted 5973 | . 1197 60 2167 907 1642 Guns 2417 | . 1095 60 1164 23 75 Cannons 1593 | . . . 699 329 565 Explosions 1858 | . . . 301 555 1002 Melee 102 | . 102 . . . . Ramming 3 | . . . 3 . . Kinetic 1285 | . 686 36 118 146 299 Thermal 2014 | . 409 24 1132 183 266 Explosive 1761 | . . . 204 555 1002 Electromagnetic 808 | . . . 710 23 75 Impact 102 | . 102 . . . . Slashing . | . . . . . . Piercing . | . . . . . . Highest Corruption 1 | . . . . 1 . Average Corruption 1 | . . . . 1 . Corruption Purged . | . . . . . . Effects 7 | . . . . 7 . Message Errors 3 | . . . . 3 . Energy Discharges 1 | . . . . 1 . Data Loss (minor) 3 | . . . . 3 . Overload Shots . | . . . . . . Overflow Damage 191 | . 72 . 35 1 83 Projectiles 14 | . . . 9 1 4 Explosions 105 | . . . 26 . 79 Melee 72 | . 72 . . . . Knockbacks 3 | . 1 . . 1 1 Impact 1 | . 1 . . . . Kinetic 2 | . . . . 1 1 Secondary . | . . . . . . Self-Inflicted Damage 175 | . . . 34 86 55 Shots 5 | . . . 1 3 1 Rammed 1 | . . . 1 . . Targets Rammed 1 | . . . 1 . . Kicked . | . . . . . . Crushed . | . . . . . . Highest Temperature 215 | . 87 9 153 215 82 Average Temperature 33 | . 21 6 31 106 43 Received Heat Transfer 934 | . 195 . 279 172 288 Siege Activations . | . . . . . . Robots Corrupted . | . . . . . . Combat Hostiles . | . . . . . . Parts Fried 5 | . 1 . 3 . 1 Impact Corruptions 3 | . 3 . . . . Robots Melted . | . . . . . . Combat Hostiles . | . . . . . . Parts Melted 8 | . 1 . 7 . . Heat Transferred 4269 | . 1209 74 2172 333 481 Parts Sabotaged . | . . . . . . Parts Stolen . | . . . . . . Parts Stripped . | . . . . . . Power Chain Reactions 3 | . . . 3 . . Missiles Intercepted . | . . . . . . Alert | -11 -10 -10 -9 -9 -8 ------- Run | Scr Mat Min Mat Min Mat Peak Influence 628 | . 180 10 422 225 628 Average Influence 75 | . 78 2 105 85 284 Maximum Alert Level 2 | . . . 2 1 2 Low Security (%) 92 | 100 100 100 87 91 35 Level 1 6 | . . . 9 8 46 Level 2 1 | . . . 2 . 18 Level 3 . | . . . . . . Level 4 . | . . . . . . Level 5 . | . . . . . . High Security . | . . . . . . Max Security . | . . . . . . Squads Dispatched 12 | . 4 . 4 . 4 Investigation 6 | . 3 . 3 . . Extermination . | . . . . . . Reinforcement 3 | . 1 . 1 . 1 Assault 1 | . . . . . 1 Garrison 2 | . . . . . 2 Intercept . | . . . . . . Construction Impeded 1 | . . . . . 1 Haulers Reinforced . | . . . . . . Stealth | -11 -10 -10 -9 -9 -8 --------- Run | Scr Mat Min Mat Min Mat Distress Signals 7 | . 1 . 3 . 3 Communications Jammed . | . . . . . . Distress Signals . | . . . . . . Times Spotted 101 | . 19 . 42 18 22 Peak Tracking Total 6 | . 4 . 4 4 6 Tactical Retreats . | . . . . . . Traps | -11 -10 -10 -9 -9 -8 ------- Run | Scr Mat Min Mat Min Mat Traps Triggered 3 | . 2 . 1 . . Indirectly . | . . . . . . Trap Hack Attempts . | . . . . . . Triggered . | . . . . . . Disarmed . | . . . . . . Reprogrammed . | . . . . . . Reused . | . . . . . . Traps Extracted . | . . . . . . Installed . | . . . . . . Triggered 1 | . . . 1 . . Machines | -11 -10 -10 -9 -9 -8 ---------- Run | Scr Mat Min Mat Min Mat Machines Disabled 6 | . . . 3 1 2 Max in Single Turn 1 | . . . 1 1 1 Garrison Access 1 | . . . . . 1 Machines Sabotaged . | . . . . . . Garrisons Compromised . | . . . . . . Overloaded Fab Kills . | . . . . . . Fab Network Shutdowns . | . . . . . . Hacking | -11 -10 -10 -9 -9 -8 --------- Run | Scr Mat Min Mat Min Mat Machines Accessed 22 | . 8 2 12 . . Terminals 15 | . 5 1 9 . . Fabricators . | . . . . . . Repair Stations 2 | . 1 . 1 . . Recycling Units 4 | . 2 . 2 . . Scanalyzers . | . . . . . . Garrison Access . | . . . . . . Total Hacks 78 | . 23 4 51 . . Successful 50 | . 17 2 31 . . Failed 28 | . 6 2 20 . . Catastrophic 2 | . 1 1 . . . Database Lockouts . | . . . . . . Manual 52 | . 18 3 31 . . Terminals 60 | . 19 3 38 . . Fabricators . | . . . . . . Repair Stations 9 | . 2 . 7 . . Recycling Units 8 | . 2 . 6 . . Scanalyzers . | . . . . . . Garrison Access . | . . . . . . Terminal Hacks 28 | . 11 2 15 . . Part Schematic 2 | . 2 . . . . Prototype ID Bank 14 | . 6 1 7 . . Open Door 1 | . . 1 . . . Branch Access Points 1 | . . . 1 . . Terminal Index 1 | . . . 1 . . Alert Level 1 | . . . 1 . . Locate Traps 4 | . 1 . 3 . . Hauler Manifests 2 | . 1 . 1 . . Registered Components 1 | . 1 . . . . Zone Layout 1 | . . . 1 . . Fabricator Hacks . | . . . . . . Repair Station Hacks 7 | . 1 . 6 . . Scan Component 4 | . 1 . 3 . . Repair 3 | . . . 3 . . Recycling Unit Hacks 1 | . . . 1 . . Retrieve Components 1 | . . . 1 . . Scanalyzer . | . . . . . . Garrison Access Hacks . | . . . . . . Unauthorized Hacks 14 | . 5 . 9 . . Terminals 10 | . 3 . 7 . . Track 3 | . 1 . 2 . . Assimilate 2 | . . . 2 . . Botnet 4 | . 2 . 2 . . Operators 1 | . . . 1 . . Fabricators . | . . . . . . Repair Stations . | . . . . . . Recycling Units 4 | . 2 . 2 . . Reject 1 | . . . 1 . . Tunnel 3 | . 2 . 1 . . Scanalyzers . | . . . . . . Garrison Access . | . . . . . . Data Cores Recovered . | . . . . . . Used . | . . . . . . Hacking Detections 17 | . 6 1 10 . . Full Trace Events 1 | . . . 1 . . Feedback Events . | . . . . . . Feedback Blocked . | . . . . . . Robot Schematics Acquired . | . . . . . . Robots Built . | . . . . . . Matter . | . . . . . . Time . | . . . . . . Total Robot Build Rating . | . . . . . . Part Schematics Acquired 2 | . 2 . . . . Parts Built . | . . . . . . Matter . | . . . . . . Time . | . . . . . . Total Part Build Rating . | . . . . . . Parts Repaired 3 | . . . 3 . . Time 90 | . . . 90 . . Parts Recycled . | . . . . . . Recycled Matter . | . . . . . . Retrieved Matter . | . . . . . . Retrieved Components 9 | . . . 9 . . Parts Scanalyzed . | . . . . . . Part Schematics Acquired . | . . . . . . Parts Damaged . | . . . . . . Bothacking | -11 -10 -10 -9 -9 -8 ------------ Run | Scr Mat Min Mat Min Mat Used RIF Installer . | . . . . . . Robots Hacked . | . . . . . . Non-combat . | . . . . . . Combat . | . . . . . . Robot Hacks Applied . | . . . . . . Relay Couplers Released 2 | . . . . . 2 Machine Destruction 2 | . . . . . 2 Robots Rewired . | . . . . . . Allies Hacked . | . . . . . . Hacks Repelled . | . . . . . . Allies | -11 -10 -10 -9 -9 -8 -------- Run | Scr Mat Min Mat Min Mat Total Allies 6 | . . 1 . 5 . Largest Group 5 | . . 1 . 5 5 Highest-Rated Group 85 | . . 31 . 85 85 Highest-Rated Ally 31 | . . 31 . 31 31 Total Orders . | . . . . . . Ally Attacks 32 | . . . . 15 17 Total Damage 334 | . . . . 179 155 Kills 8 | . . . . 3 5 Allies Corrupted . | . . . . . . Allies Melted . | . . . . . . Intel | -11 -10 -10 -9 -9 -8 ------- Run | Scr Mat Min Mat Min Mat Robot Analysis Total . | . . . . . . Derelict Logs Recovered 3 | . . 2 . 1 . Drone Launches . | . . . . . . Drone Recoveries . | . . . . . . Exploration | -11 -10 -10 -9 -9 -8 ------------- Run | Scr Mat Min Mat Min Mat Turns Passed 8500 | 84 1614 1979 2851 1757 215 Spaces Moved 3950 | 55 829 916 1236 846 68 Core 2 | 2 . . . . . Treads 1075 | 1 207 4 407 456 . Legs . | . . . . . . Wheels 2873 | 52 622 912 829 390 68 Hover . | . . . . . . Flight . | . . . . . . Fastest Speed 50 | 50 90 130 130 140 150 Average Speed 154 | 85 135 130 165 188 155 Slowest Speed 240 | 160 200 200 220 240 160 Overloaded Moves . | . . . . . . Propulsion Burnouts . | . . . . . . Robots Hopped . | . . . . . . Cave-ins Triggered . | . . . . . . Exploration Rate (%) 68 | 5 98 98 98 100 14 Regions Visited 5 Branch Regions 2 Pre-discovered Areas 5 | . 2 1 1 1 . Known Exits Taken 2 | . . . 1 1 . Unknown Exits Taken 3 | 1 1 1 . . . Scrap Searched 4 | . . 3 . 1 . Spaces Dug 36 | . 6 . 14 16 . Terrain Destroyed 248 | . 6 . 45 124 73 Melee 23 | . 6 . 14 3 . Projectile 6 | . . . . 5 1 AOE 219 | . . . 31 116 72 Actions | -11 -10 -10 -9 -9 -8 --------- Run | Scr Mat Min Mat Min Mat Total 5859 | 89 1164 1699 1837 949 121 Wait 1416 | 23 196 762 380 50 5 Move 3945 | 54 828 915 1235 845 68 Hop . | . . . . . . Pick Up 59 | 6 15 8 26 2 2 Fast Attach 21 | 6 6 . 7 1 1 Attach 11 | . 1 . 2 2 6 Detach . | . . . . . . Swap 66 | . 19 2 32 8 5 Drop 62 | . 14 8 37 3 . Fire 244 | . 73 4 99 34 34 Melee 34 | . 12 . 18 4 . Ram . | . . . . . . Kick . | . . . . . . Crush 1 | . . . 1 . . Escape Stasis . | . . . . . . Rewire . | . . . . . . Trap . | . . . . . . Miscellaneous . | . . . . . . Route ------- -11/Scrapyard -10/Materials (discovered 5 exits: *Mat x3 / *Min x2) -10/Mines (discovered 2 exits: *Mat x2) -9/Materials (discovered 5 exits: *Mat x3 / *Min x2) -9/Mines (discovered 2 exits: *Mat x2) -8/Materials History --------- Turn | Location | Event 17 | -11/Scrapyard | Discovered new exit (range 15) 85 | -11/Scrapyard | Entered Materials 311 | -10/Materials | Build established: Mutant 520 | -10/Materials | Discovered new exit (range 8) 710 | -10/Materials | Discovered new exit (range 5) 808 | -10/Materials | Discovered new exit (range 8) 1286 | -10/Materials | Discovered new exit (range 13) 1595 | -10/Materials | Discovered new exit (range 7) 1699 | -10/Materials | Entered Mines 1729 | -10/Mines | Met a Derelict bent on vengeance 1866 | -10/Mines | Discovered new exit (range 5) 1907 | -10/Mines | Discovered new exit (range 11) 2222 | -10/Mines | Met a Derelict who couldn't figure out how to use a Trap Extractor 3198 | -10/Mines | Learned 4 Materials zone layouts 3310 | -10/Mines | Received a Mining Laser from a helpful Derelict 3605 | -10/Mines | Found a hidden stash of uninstalled traps 3678 | -10/Mines | Entered Materials 3678 | -9/Materials | Evolved 2 slots: Utility x2 3679 | -9/Materials | Identified exit to Mines 3679 | -9/Materials | Identified exit to Materials 4039 | -9/Materials | Build established: Scavenger-Mutant 4407 | -9/Materials | Repaired Lgt. Armor Plating 4441 | -9/Materials | Repaired EM Shotgun 4474 | -9/Materials | Repaired Imp. Ion Engine 5325 | -9/Materials | Discovered exit to Materials (range 16) 5467 | -9/Materials | Build established: Hauler-Mutant 6146 | -9/Materials | Discovered exit to Materials (range 16) 6529 | -9/Materials | Entered Mines 6530 | -9/Mines | Assembled infested the area 6535 | -9/Mines | Assisted by a Guerilla fighting off Assembled 6794 | -9/Mines | Core integrity fell below 50% 6825 | -9/Mines | Destroyed 7 combat bots 7048 | -9/Mines | Learned location of Zion (-7) 7204 | -9/Mines | Assisted by bots powering up and referring to "LRC-V3" 7540 | -9/Mines | Discovered exit to Materials (range 10) 7872 | -9/Mines | Discovered exit to Materials (range 3) 8286 | -9/Mines | Entered Materials 8286 | -8/Materials | Accompanied by 5 allies 8286 | -8/Materials | Evolved 2 slots: Utility x2 8291 | -8/Materials | Led the pair of lost Derelicts to an unsafe place 8320 | -8/Materials | Garrison activated, responded to threat 8437 | -8/Materials | Lost 5 parts (1p1u3w) 8501 | -8/Materials | Self-destructed Last Messages --------------- 08482_ U-05 Engineer builds a Wall. 08484_ R-06 Scavenger collects Lgt. Assault Rifle. 08485_ U-05 Engineer lays Concrete. 08487_ U-05 Engineer builds a Wall. 08487_ U-05 Engineer lays Concrete. 08488_ R-06 Scavenger collects Flight Unit. 08488_ U-05 Engineer lays Concrete. 08490_ The unstable cave ceiling collapses. 08490_ U-05 Engineer builds a Wall. 08491_ U-05 Engineer lays Concrete. 08491_ R-06 Scavenger collects Lgt. Treads. 08492_ U-05 Engineer lays Concrete. 08493_ U-05 Engineer builds a Wall. 08493_ U-05 Engineer lays Concrete. 08495_ U-05 Engineer builds a Wall. 08495_ U-05 Engineer lays Concrete. 08497_ U-05 Engineer builds a Wall. 08499_ U-05 Engineer lays Concrete. 08501_ U-05 Engineer builds a Wall. 08501_ U-05 Engineer lays Concrete. Map ----- +----------------------------------------------------+ | | | | | | | | | | | | | | | | | | | | | | | | | ?????####????????????????????????????????????????? | | ????? ????????????????????????????????????????? | | #### ??????##????????????????????????????????? | | # ?###### ####????????????????????????????? | | # ?# ! +????????????????????????????? | | # ?# " #????????????????????????????? | | # ?# """ "G" #????????????????????????????? | | # ## """ " #????????????????????????????? | | #= ## """ ! !#????????????????????????????? | | # ## """ ###??????????????????????????? | | # ## % #??????????????????????????? | | %%*#? # ! ! ###?????????????????????????? | | ######/######## ###########???????????????? | | *%=! %=% %=[uu= = @ ????????? | | =[*[%[ = u u []! ##########???????????????? | | *=%%*% %]= #????????????????????????? | | ######+# w # [ ###????????????????????????? | | ???? % = ## Y!# ] """ ????????????????????????? | | ??# ! ]## ## """ "???????????????????????? | | ??# ## ## """ "???????????????????????? | | ??# """ ### ## ??????????????????????? | | ??# """"" #?# ## ??????????????????????? | | ??# """"" #?# ## ??????????????????????? | | ??# """"" #? ########???????????????????????? | | ??# ?"" #? ??????????????????????????????? | | ??# ???? ## ! ? ?????????????????????????????? | | ???#+????#### ?????????????????????????????? | | ????????????# #?#????????????????????????????? | | ????????????#######??????????????????????????????? | | ?????????????????????????????????????????????????? | | ?????????????????????????????????????????????????? | | ?????????????????????????????????????????????????? | | ?????????????????????????????????????????????????? | | ?????????????????????????????????????????????????? | | ?????????????????????????????????????????????????? | | ?????????????????????????????????????????????????? | | ?????????????????????????????????????????????????? | | ?????????????????????????????????????????????????? | +----------------------------------------------------+ Best States ------------- Heat Dissipation 59 Energy Generation 18 Energy Capacity 265 Matter Stores 300 Matter Capacity 300 Sight Range 16 Terrain Scan Density 10 Armor Coverage 300 Evasion (%) 44 Recoil Reduction 1 Item Schematics ----------------- Med. Storage Unit | -10/Materials | Hacked Lrg. Storage Unit | -10/Materials | Hacked Robot Schematics ------------------ None Fabricated ------------ Nothing Alien Tech Used ----------------- None Achievements -------------- None Challenges ------------ None Game ------ Seed TractorGaussCannon Manual? 0 Play Time 00:54:47 Cumulative 171.6 hours Start 2020.07.09 @ 20:53:10 End 2020.07.10 @ 17:10:57 Sessions 3 Manual Loads 0 Difficulty Rogue Special Mode None Game No. 96 Rogue 95 Adventurer 1 Explorer 0 Win Type - Total 7 Types 6/0/0/1/0/0/0 Lore% 81 Gallery% 79 Achievement% 62 Wizard Run 0 Options --------- ASCII 1 Keyboard 1 Movement Numpad Keybinds 0 Fullscreen 2 Font 24/Smallcaps Map View 76x50 Tactical HUD 1 Map Filters NONE Filters NONE Steam 1 RUN: 0d1e52d1-e15c-4c9b-b8b7-459b2030f825